fUSD/lending_fUSD_20260607
["ID","MTS","AMOUNT","RATE_DAILY","PERIOD"]
[424330822,1780768354000,-5000.0,0.0003843,7]
[424330801,1780768354000,-638.66923702,0.000384,30]
[424330815,1780768354000,-5000.0,0.0003843,7]
[424330791,1780768354000,-638.66923702,0.000384,30]
[424330789,1780768354000,-638.66923702,0.000384,30]
[424330788,1780768354000,-638.66923702,0.000384,30]
[424330790,1780768354000,-638.66923702,0.000384,30]
[424330792,1780768354000,-638.66923702,0.000384,30]
[424330794,1780768354000,-638.66923702,0.000384,30]
[424330795,1780768354000,-638.66923702,0.000384,30]
[424330797,1780768354000,-638.66923702,0.000384,30]
[424330802,1780768354000,-638.66923702,0.000384,30]
[424330803,1780768354000,-638.66923702,0.000384,30]
[424330796,1780768354000,-638.66923702,0.000384,30]
[424330800,1780768354000,-638.66923702,0.000384,30]
[424330793,1780768354000,-638.66923702,0.000384,30]
[424330805,1780768354000,-638.66923702,0.000384,30]
[424330820,1780768354000,-5000.0,0.0003843,2]
[424330799,1780768354000,-638.66923702,0.000384,30]
[424330798,1780768354000,-638.66923702,0.000384,30]
[424330807,1780768354000,-364.69,0.000384,120]
[424330818,1780768354000,-5000.0,0.0003843,7]
[424330817,1780768354000,-5000.0,0.0003843,7]
[424330819,1780768354000,-5000.0,0.0003843,7]
[424330806,1780768354000,-1458.74,0.000384,120]
[424330809,1780768354000,-5000.0,0.0003843,2]
[424330808,1780768354000,-150.0,0.00038421,120]
[424330810,1780768354000,-5000.0,0.0003843,2]
[424330814,1780768354000,-5000.0,0.0003843,2]
[424330812,1780768354000,-5000.0,0.0003843,7]
[424330811,1780768354000,-5000.0,0.0003843,7]
[424330816,1780768354000,-5000.0,0.0003843,7]
[424330813,1780768354000,-403.48,0.0003843,7]
[424330804,1780768354000,-638.66923702,0.000384,30]
[424330851,1780768354000,-1703.26,0.0003851,7]
[424330902,1780768354000,-100000.0,0.00038599,14]
[424330852,1780768354000,-348.90518129,0.00038514,120]
[424330901,1780768354000,-152.47,0.00038599,2]
[424330890,1780768354000,-187.78006524,0.00038568,52]
[424330899,1780768354000,-6623.1858464,0.00038595,30]
[424330893,1780768354000,-500.0,0.00038568,52]
[424330896,1780768354000,-500.0,0.00038568,52]
[424330894,1780768354000,-151.0,0.00038568,52]
[424330898,1780768354000,-152.81900171,0.00038593,14]
[424330897,1780768354000,-150.0,0.00038585,120]
[424330892,1780768354000,-152.0,0.00038568,52]
[424330895,1780768354000,-646.65982734,0.00038568,52]
[424330904,1780768354000,-181.08010149,0.00038599,30]
[424330903,1780768354000,-42276.75,0.00038599,14]
[424330906,1780768354000,-359.76179104,0.00038599,30]
[424330911,1780768354000,-10000.0,0.00038599,30]
[424330905,1780768354000,-599.60298507,0.00038599,30]
[424330913,1780768354000,-8260.13072238,0.00038599,30]
[424330915,1780768354000,-250.0,0.00038599,30]
[424330920,1780768354000,-151.0,0.00038599,30]
[424330923,1780768354000,-151.0,0.00038599,30]
[424330922,1780768354000,-1000.0,0.00038599,30]
[424330921,1780768354000,-500.0,0.00038599,30]
[424330919,1780768354000,-181.08010149,0.00038599,30]
[424330916,1780768354000,-200.0,0.00038599,30]
[424330900,1780768354000,-152.81900171,0.00038596,14]
[424330850,1780768354000,-150.0,0.00038503,120]
[424330914,1780768354000,-339.94668816,0.00038599,30]
[424330910,1780768354000,-599.60298507,0.00038599,30]
[424330908,1780768354000,-181.08010149,0.00038599,30]
[424330912,1780768354000,-160.0,0.00038599,30]
[424330907,1780768354000,-151.0,0.00038599,30]
[424330909,1780768354000,-500.0,0.00038599,30]
[424330917,1780768354000,-200.0,0.00038599,30]
[424330891,1780768354000,-5596.0946597,0.00038568,52]
[424330918,1780768354000,-151.0,0.00038599,30]
[424330888,1780768354000,-500.0,0.00038568,52]
[424330883,1780768354000,-200.0,0.00038568,52]
[424330853,1780768354000,-158.13681208,0.00038517,2]
[424330855,1780768354000,-2000.0,0.00038521,30]
[424330856,1780768354000,-234681.0,0.00038527,120]
[424330862,1780768354000,-217.11430839,0.00038553,120]
[424330873,1780768354000,-151.0,0.00038568,52]
[424330872,1780768354000,-373.07297731,0.00038568,52]
[424330864,1780768354000,-3059.36,0.0003856,120]
[424330863,1780768354000,-213.62090161,0.00038553,120]
[424330866,1780768354000,-5000.0,0.00038563,2]
[424330861,1780768354000,-212.97758165,0.00038553,120]
[424330871,1780768354000,-621.78829552,0.00038568,52]
[424330868,1780768354000,-250.0,0.00038563,2]
[424330874,1780768354000,-187.78006524,0.00038568,52]
[424330867,1780768354000,-250.0,0.00038563,2]
[424330854,1780768354000,-223.74,0.0003852,105]
[424330865,1780768354000,-5000.0,0.00038563,2]
[424330870,1780768354000,-187.78006524,0.00038568,52]
[424330889,1780768354000,-151.0,0.00038568,52]
[424330884,1780768354000,-151.0,0.00038568,52]
[424330876,1780768354000,-500.0,0.00038568,52]
[424330887,1780768354000,-151.0,0.00038568,52]
[424330886,1780768354000,-187.78006524,0.00038568,52]
[424330882,1780768354000,-200.0,0.00038568,52]
[424330885,1780768354000,-1000.0,0.00038568,52]
[424330880,1780768354000,-339.94668816,0.00038568,52]
[424330877,1780768354000,-3528.30011525,0.00038568,52]
[424330875,1780768354000,-621.78829552,0.00038568,52]
[424330879,1780768354000,-8565.75555911,0.00038568,52]
[424330878,1780768354000,-160.0,0.00038568,52]
[424330881,1780768354000,-250.0,0.00038568,52]
[424330869,1780768354000,-320.0,0.00038564,52]
[424330957,1780768355000,-339.94668816,0.00038617,30]
[424330959,1780768355000,-200.0,0.00038617,30]
[424330956,1780768355000,-7965.41053267,0.00038617,30]
[424330953,1780768355000,-500.0,0.00038617,30]
[424330954,1780768355000,-10000.0,0.00038617,30]
[424330955,1780768355000,-160.0,0.00038617,30]
[424330962,1780768355000,-174.61919141,0.00038617,30]
[424330951,1780768355000,-174.61919141,0.00038617,30]
[424330961,1780768355000,-151.0,0.00038617,30]
[424330958,1780768355000,-250.0,0.00038617,30]
[424330960,1780768355000,-200.0,0.00038617,30]
[424330967,1780768355000,-174.61919141,0.00038617,30]
[424330964,1780768355000,-151.0,0.00038617,30]
[424330966,1780768355000,-151.0,0.00038617,30]
[424330969,1780768355000,-5203.88318772,0.00038617,30]
[424330963,1780768355000,-174.99718491,0.00038617,30]
[424330972,1780768355000,-500.0,0.00038617,30]
[424330968,1780768355000,-1000.0,0.00038617,30]
[424330975,1780768355000,-5000.0,0.00038618,30]
[424330971,1780768355000,-500.0,0.00038617,30]
[424330970,1780768355000,-152.0,0.00038617,30]
[424330974,1780768355000,-601.3376128,0.00038617,30]
[424330952,1780768355000,-578.20924308,0.00038617,30]
[424330965,1780768355000,-500.0,0.00038617,30]
[424330948,1780768355000,-578.20924308,0.00038617,30]
[424330934,1780768355000,-99764.87748237,0.000386,30]
[424330942,1780768355000,-500.0,0.00038603,120]
[424330986,1780768355000,-200.0,0.00038629,30]
[424330927,1780768355000,-500.0,0.00038599,30]
[424330929,1780768355000,-500.0,0.00038599,30]
[424330928,1780768355000,-151.0,0.00038599,30]
[424330924,1780768355000,-181.08010149,0.00038599,30]
[424330925,1780768355000,-5396.42686567,0.00038599,30]
[424330926,1780768355000,-152.0,0.00038599,30]
[424330931,1780768355000,-12559.74632342,0.000386,5]
[424330932,1780768355000,-1000.0,0.000386,90]
[424330933,1780768355000,-5419.2257915,0.000386,120]
[424330930,1780768355000,-623.58710447,0.00038599,30]
[424330946,1780768355000,-273.70399066,0.00038603,120]
[424330936,1780768355000,-2000.0,0.000386,7]
[424330937,1780768355000,-500.0,0.00038603,120]
[424330938,1780768355000,-500.0,0.00038603,120]
[424330940,1780768355000,-500.0,0.00038603,120]
[424330939,1780768355000,-500.0,0.00038603,120]
[424330949,1780768355000,-151.0,0.00038617,30]
[424330950,1780768355000,-346.92554584,0.00038617,30]
[424330941,1780768355000,-500.0,0.00038603,120]
[424330943,1780768355000,-500.0,0.00038603,120]
[424330945,1780768355000,-500.0,0.00038603,120]
[424330944,1780768355000,-500.0,0.00038603,120]
[424330947,1780768355000,-174.61919141,0.00038617,30]
[424330935,1780768355000,-1366.84,0.000386,90]
[424330977,1780768355000,-150.0,0.00038627,120]
[424330973,1780768355000,-151.0,0.00038617,30]
[424330988,1780768355000,-339.94668816,0.00038629,30]
[424331002,1780768355000,-5018.2094385,0.00038629,30]
[424331007,1780768355000,-151.0,0.00038629,30]
[424331005,1780768355000,-500.0,0.00038629,30]
[424331012,1780768355000,-211.66987792,0.0003863,2]
[424331009,1780768355000,-183.91632607,0.0003863,25]
[424331010,1780768355000,-1562.0,0.0003863,30]
[424331011,1780768355000,-2000.0,0.0003863,120]
[424331015,1780768355000,-540.38050803,0.0003863,120]
[424331025,1780768355000,-50000.0,0.00038634,71]
[424331014,1780768355000,-3000.0,0.0003863,120]
[424331026,1780768355000,-50000.0,0.00038634,72]
[424331008,1780768355000,-579.88197956,0.00038629,30]
[424331018,1780768355000,-175.73675625,0.00038634,120]
[424331017,1780768355000,-276.43618742,0.00038634,120]
[424331023,1780768355000,-50000.0,0.00038634,69]
[424331019,1780768355000,-50000.0,0.00038634,65]
[424331022,1780768355000,-50000.0,0.00038634,68]
[424331024,1780768355000,-50000.0,0.00038634,70]
[424331021,1780768355000,-50000.0,0.00038634,67]
[424331028,1780768355000,-50000.0,0.00038634,74]
[424331031,1780768355000,-50000.0,0.00038634,79]
[424331029,1780768355000,-50000.0,0.00038634,76]
[424331027,1780768355000,-268.38633033,0.00038634,120]
[424330987,1780768355000,-160.0,0.00038629,30]
[424331020,1780768355000,-50000.0,0.00038634,66]
[424331013,1780768355000,-423.33975584,0.0003863,2]
[424331016,1780768355000,-500.0,0.00038632,120]
[424331004,1780768355000,-152.0,0.00038629,30]
[424331006,1780768355000,-500.0,0.00038629,30]
[424330980,1780768355000,-151.0,0.00038629,30]
[424330981,1780768355000,-334.5472959,0.00038629,30]
[424330982,1780768355000,-168.3888056,0.00038629,30]
[424330983,1780768355000,-557.5788265,0.00038629,30]
[424330976,1780768355000,-320.0,0.00038624,52]
[424331030,1780768355000,-50000.0,0.00038634,78]
[424330978,1780768355000,-168.3888056,0.00038629,30]
[424330985,1780768355000,-10000.0,0.00038629,30]
[424330979,1780768355000,-557.5788265,0.00038629,30]
[424330992,1780768355000,-277.35030765,0.00038629,30]
[424330989,1780768355000,-7681.20591386,0.00038629,30]
[424330984,1780768355000,-500.0,0.00038629,30]
[424331000,1780768355000,-168.3888056,0.00038629,30]
[424330999,1780768355000,-151.0,0.00038629,30]
[424330997,1780768355000,-151.0,0.00038629,30]
[424330994,1780768355000,-151.0,0.00038629,30]
[424330993,1780768355000,-200.0,0.00038629,30]
[424330990,1780768355000,-168.3888056,0.00038629,30]
[424330996,1780768355000,-151.0,0.00038629,30]
[424330995,1780768355000,-168.3888056,0.00038629,30]
[424330998,1780768355000,-500.0,0.00038629,30]
[424331001,1780768355000,-1000.0,0.00038629,30]
[424331003,1780768355000,-557.5788265,0.00038629,30]
[424330991,1780768355000,-250.0,0.00038629,30]
[424331075,1780768356000,-2000.0,0.00038634,120]
[424331072,1780768356000,-2000.0,0.00038634,120]
[424331065,1780768356000,-2000.0,0.00038634,120]
[424331074,1780768356000,-2000.0,0.00038634,120]
[424331073,1780768356000,-2000.0,0.00038634,120]
[424331070,1780768356000,-2000.0,0.00038634,120]
[424331077,1780768356000,-2000.0,0.00038634,120]
[424331079,1780768356000,-2000.0,0.00038634,120]
[424331069,1780768356000,-2000.0,0.00038634,120]
[424331067,1780768356000,-2000.0,0.00038634,120]
[424331078,1780768356000,-2000.0,0.00038634,120]
[424331068,1780768356000,-2000.0,0.00038634,120]
[424331076,1780768356000,-2000.0,0.00038634,120]
[424331071,1780768356000,-2000.0,0.00038634,120]
[424331081,1780768356000,-2000.0,0.00038634,120]
[424331097,1780768356000,-2000.0,0.00038634,120]
[424331083,1780768356000,-2000.0,0.00038634,120]
[424331093,1780768356000,-2000.0,0.00038634,120]
[424331091,1780768356000,-2000.0,0.00038634,120]
[424331080,1780768356000,-2000.0,0.00038634,120]
[424331090,1780768356000,-2000.0,0.00038634,120]
[424331082,1780768356000,-2000.0,0.00038634,120]
[424331092,1780768356000,-2000.0,0.00038634,120]
[424331085,1780768356000,-2000.0,0.00038634,120]
[424331086,1780768356000,-2000.0,0.00038634,120]
[424331084,1780768356000,-2000.0,0.00038634,120]
[424331088,1780768356000,-2000.0,0.00038634,120]
[424331096,1780768356000,-2000.0,0.00038634,120]
[424331094,1780768356000,-2000.0,0.00038634,120]
[424331054,1780768356000,-2000.0,0.00038634,120]
[424331089,1780768356000,-2000.0,0.00038634,120]
[424331064,1780768356000,-2000.0,0.00038634,120]
[424331033,1780768356000,-382.5396643,0.00038634,120]
[424331063,1780768356000,-2000.0,0.00038634,120]
[424331038,1780768356000,-2000.0,0.00038634,120]
[424331039,1780768356000,-2000.0,0.00038634,120]
[424331035,1780768356000,-2000.0,0.00038634,120]
[424331037,1780768356000,-2000.0,0.00038634,120]
[424331034,1780768356000,-2000.0,0.00038634,120]
[424331095,1780768356000,-2000.0,0.00038634,120]
[424331036,1780768356000,-2000.0,0.00038634,120]
[424331032,1780768356000,-161.43402243,0.00038634,120]
[424331043,1780768356000,-2000.0,0.00038634,120]
[424331040,1780768356000,-2000.0,0.00038634,120]
[424331051,1780768356000,-2000.0,0.00038634,120]
[424331044,1780768356000,-2000.0,0.00038634,120]
[424331041,1780768356000,-2000.0,0.00038634,120]
[424331052,1780768356000,-2000.0,0.00038634,120]
[424331066,1780768356000,-2000.0,0.00038634,120]
[424331042,1780768356000,-2000.0,0.00038634,120]
[424331048,1780768356000,-2000.0,0.00038634,120]
[424331046,1780768356000,-2000.0,0.00038634,120]
[424331047,1780768356000,-2000.0,0.00038634,120]
[424331045,1780768356000,-2000.0,0.00038634,120]
[424331050,1780768356000,-2000.0,0.00038634,120]
[424331053,1780768356000,-2000.0,0.00038634,120]
[424331055,1780768356000,-2000.0,0.00038634,120]
[424331057,1780768356000,-2000.0,0.00038634,120]
[424331056,1780768356000,-2000.0,0.00038634,120]
[424331058,1780768356000,-2000.0,0.00038634,120]
[424331062,1780768356000,-2000.0,0.00038634,120]
[424331061,1780768356000,-2000.0,0.00038634,120]
[424331059,1780768356000,-2000.0,0.00038634,120]
[424331060,1780768356000,-2000.0,0.00038634,120]
[424331049,1780768356000,-2000.0,0.00038634,120]
[424331098,1780768356000,-2000.0,0.00038634,120]
[424331087,1780768356000,-2000.0,0.00038634,120]
[424331106,1780768356000,-2000.0,0.00038634,120]
[424331136,1780768356000,-50000.0,0.00038634,62]
[424331135,1780768356000,-50000.0,0.00038634,61]
[424331144,1780768356000,-583.3,0.00038635,120]
[424331145,1780768356000,-500.0,0.00038635,120]
[424331147,1780768356000,-1430.75,0.00038635,120]
[424331148,1780768356000,-607.47866601,0.00038635,120]
[424331146,1780768356000,-500.0,0.00038635,120]
[424331142,1780768356000,-1430.75,0.00038635,120]
[424331137,1780768356000,-50000.0,0.00038634,63]
[424331140,1780768356000,-583.3,0.00038635,120]
[424331141,1780768356000,-500.0,0.00038635,120]
[424331143,1780768356000,-500.0,0.00038635,120]
[424331138,1780768356000,-50000.0,0.00038634,64]
[424331139,1780768356000,-1137.03220166,0.00038635,120]
[424331159,1780768356000,-1430.75,0.00038635,120]
[424331153,1780768356000,-500.0,0.00038635,120]
[424331149,1780768356000,-583.3,0.00038635,120]
[424331162,1780768356000,-583.3,0.00038635,120]
[424331103,1780768356000,-2000.0,0.00038634,120]
[424331164,1780768356000,-583.3,0.00038635,120]
[424331163,1780768356000,-1430.75,0.00038635,120]
[424331158,1780768356000,-583.3,0.00038635,120]
[424331156,1780768356000,-1430.75,0.00038635,120]
[424331132,1780768356000,-2000.0,0.00038634,120]
[424331154,1780768356000,-583.3,0.00038635,120]
[424331157,1780768356000,-583.3,0.00038635,120]
[424331155,1780768356000,-500.0,0.00038635,120]
[424331150,1780768356000,-506.67831373,0.00038635,120]
[424331160,1780768356000,-327.88061765,0.00038635,120]
[424331151,1780768356000,-500.0,0.00038635,120]
[424331152,1780768356000,-1430.75,0.00038635,120]
[424331161,1780768356000,-1430.75,0.00038635,120]
[424331131,1780768356000,-2000.0,0.00038634,120]
[424331165,1780768356000,-583.3,0.00038635,120]
[424331130,1780768356000,-2000.0,0.00038634,120]
[424331133,1780768356000,-1999.8849698,0.00038634,120]
[424331100,1780768356000,-2000.0,0.00038634,120]
[424331102,1780768356000,-2000.0,0.00038634,120]
[424331104,1780768356000,-2000.0,0.00038634,120]
[424331101,1780768356000,-2000.0,0.00038634,120]
[424331099,1780768356000,-2000.0,0.00038634,120]
[424331108,1780768356000,-2000.0,0.00038634,120]
[424331118,1780768356000,-2000.0,0.00038634,120]
[424331107,1780768356000,-2000.0,0.00038634,120]
[424331119,1780768356000,-2000.0,0.00038634,120]
[424331120,1780768356000,-2000.0,0.00038634,120]
[424331111,1780768356000,-2000.0,0.00038634,120]
[424331113,1780768356000,-2000.0,0.00038634,120]
[424331109,1780768356000,-2000.0,0.00038634,120]
[424331112,1780768356000,-2000.0,0.00038634,120]
[424331105,1780768356000,-2000.0,0.00038634,120]
[424331114,1780768356000,-2000.0,0.00038634,120]
[424331134,1780768356000,-50000.0,0.00038634,60]
[424331127,1780768356000,-2000.0,0.00038634,120]
[424331128,1780768356000,-2000.0,0.00038634,120]
[424331124,1780768356000,-2000.0,0.00038634,120]
[424331115,1780768356000,-2000.0,0.00038634,120]
[424331125,1780768356000,-2000.0,0.00038634,120]
[424331122,1780768356000,-2000.0,0.00038634,120]
[424331126,1780768356000,-2000.0,0.00038634,120]
[424331121,1780768356000,-2000.0,0.00038634,120]
[424331123,1780768356000,-2000.0,0.00038634,120]
[424331116,1780768356000,-2000.0,0.00038634,120]
[424331117,1780768356000,-2000.0,0.00038634,120]
[424331110,1780768356000,-2000.0,0.00038634,120]
[424331129,1780768356000,-2000.0,0.00038634,120]
[424331208,1780768357000,-500.0,0.00038635,120]
[424331211,1780768357000,-500.0,0.00038635,120]
[424331206,1780768357000,-500.0,0.00038635,120]
[424331209,1780768357000,-253.04397463,0.00038635,120]
[424331205,1780768357000,-565.52,0.00038635,120]
[424331201,1780768357000,-500.0,0.00038635,120]
[424331204,1780768357000,-500.0,0.00038635,120]
[424331214,1780768357000,-565.52,0.00038635,120]
[424331202,1780768357000,-500.0,0.00038635,120]
[424331203,1780768357000,-500.0,0.00038635,120]
[424331213,1780768357000,-500.0,0.00038635,120]
[424331198,1780768357000,-500.0,0.00038635,120]
[424331212,1780768357000,-500.0,0.00038635,120]
[424331207,1780768357000,-565.52,0.00038635,120]
[424331223,1780768357000,-565.52,0.00038635,120]
[424331216,1780768357000,-500.0,0.00038635,120]
[424331215,1780768357000,-500.0,0.00038635,120]
[424331227,1780768357000,-565.52,0.00038635,120]
[424331226,1780768357000,-565.52,0.00038635,120]
[424331218,1780768357000,-500.0,0.00038635,120]
[424331219,1780768357000,-500.0,0.00038635,120]
[424331217,1780768357000,-565.52,0.00038635,120]
[424331220,1780768357000,-500.0,0.00038635,120]
[424331221,1780768357000,-500.0,0.00038635,120]
[424331222,1780768357000,-239.71467989,0.00038635,120]
[424331224,1780768357000,-634.28033997,0.00038635,120]
[424331225,1780768357000,-565.52,0.00038635,120]
[424331196,1780768357000,-583.35255355,0.00038635,120]
[424331228,1780768357000,-565.52,0.00038635,120]
[424331210,1780768357000,-565.52,0.00038635,120]
[424331195,1780768357000,-583.3,0.00038635,120]
[424331182,1780768357000,-1430.75,0.00038635,120]
[424331193,1780768357000,-583.3,0.00038635,120]
[424331229,1780768357000,-565.52,0.00038635,120]
[424331173,1780768357000,-1430.75,0.00038635,120]
[424331174,1780768357000,-583.3,0.00038635,120]
[424331172,1780768357000,-500.0,0.00038635,120]
[424331171,1780768357000,-583.3,0.00038635,120]
[424331170,1780768357000,-1430.75,0.00038635,120]
[424331166,1780768357000,-500.0,0.00038635,120]
[424331167,1780768357000,-1430.75,0.00038635,120]
[424331168,1780768357000,-583.3,0.00038635,120]
[424331177,1780768357000,-1430.75,0.00038635,120]
[424331175,1780768357000,-500.0,0.00038635,120]
[424331178,1780768357000,-500.0,0.00038635,120]
[424331180,1780768357000,-583.3,0.00038635,120]
[424331179,1780768357000,-500.0,0.00038635,120]
[424331176,1780768357000,-583.3,0.00038635,120]
[424331181,1780768357000,-191.11060601,0.00038635,120]
[424331185,1780768357000,-1430.77677047,0.00038635,120]
[424331184,1780768357000,-583.3,0.00038635,120]
[424331183,1780768357000,-500.0,0.00038635,120]
[424331186,1780768357000,-500.0,0.00038635,120]
[424331187,1780768357000,-583.3,0.00038635,120]
[424331189,1780768357000,-583.3,0.00038635,120]
[424331200,1780768357000,-500.0,0.00038635,120]
[424331192,1780768357000,-583.3,0.00038635,120]
[424331191,1780768357000,-583.3,0.00038635,120]
[424331199,1780768357000,-500.0,0.00038635,120]
[424331188,1780768357000,-500.0,0.00038635,120]
[424331194,1780768357000,-583.3,0.00038635,120]
[424331190,1780768357000,-612.63737716,0.00038635,120]
[424331197,1780768357000,-500.0,0.00038635,120]
[424331230,1780768357000,-565.52,0.00038635,120]
[424331169,1780768357000,-500.0,0.00038635,120]
[424331232,1780768357000,-565.52,0.00038635,120]
[424331260,1780768357000,-565.52,0.00038635,120]
[424331269,1780768357000,-500.0,0.00038635,120]
[424331280,1780768357000,-500.0,0.00038635,120]
[424331268,1780768357000,-565.52,0.00038635,120]
[424331279,1780768357000,-500.0,0.00038635,120]
[424331271,1780768357000,-500.0,0.00038635,120]
[424331270,1780768357000,-500.0,0.00038635,120]
[424331276,1780768357000,-565.55786813,0.00038635,120]
[424331273,1780768357000,-500.0,0.00038635,120]
[424331277,1780768357000,-287.61152902,0.00038635,120]
[424331274,1780768357000,-500.0,0.00038635,120]
[424331278,1780768357000,-500.0,0.00038635,120]
[424331275,1780768357000,-500.0,0.00038635,120]
[424331272,1780768357000,-565.52,0.00038635,120]
[424331256,1780768357000,-565.52,0.00038635,120]
[424331281,1780768357000,-500.0,0.00038635,120]
[424331283,1780768357000,-500.0,0.00038635,120]
[424331293,1780768357000,-500.0,0.00038635,120]
[424331286,1780768357000,-508.13155973,0.00038635,120]
[424331287,1780768357000,-500.0,0.00038635,120]
[424331285,1780768357000,-500.0,0.00038635,120]
[424331282,1780768357000,-501.65461939,0.00038635,120]
[424331292,1780768357000,-500.0,0.00038635,120]
[424331296,1780768357000,-623.25,0.00038635,120]
[424331288,1780768357000,-500.0,0.00038635,120]
[424331290,1780768357000,-500.0,0.00038635,120]
[424331289,1780768357000,-500.0,0.00038635,120]
[424331291,1780768357000,-500.0,0.00038635,120]
[424331295,1780768357000,-769.73,0.00038635,120]
[424331231,1780768357000,-500.0,0.00038635,120]
[424331284,1780768357000,-500.0,0.00038635,120]
[424331257,1780768357000,-500.0,0.00038635,120]
[424331294,1780768357000,-769.73,0.00038635,120]
[424331258,1780768357000,-500.0,0.00038635,120]
[424331237,1780768357000,-565.52,0.00038635,120]
[424331239,1780768357000,-500.0,0.00038635,120]
[424331233,1780768357000,-500.0,0.00038635,120]
[424331236,1780768357000,-500.0,0.00038635,120]
[424331240,1780768357000,-500.0,0.00038635,120]
[424331234,1780768357000,-500.0,0.00038635,120]
[424331235,1780768357000,-565.52,0.00038635,120]
[424331238,1780768357000,-500.0,0.00038635,120]
[424331267,1780768357000,-500.0,0.00038635,120]
[424331252,1780768357000,-500.0,0.00038635,120]
[424331253,1780768357000,-500.0,0.00038635,120]
[424331254,1780768357000,-500.0,0.00038635,120]
[424331243,1780768357000,-500.0,0.00038635,120]
[424331246,1780768357000,-500.0,0.00038635,120]
[424331241,1780768357000,-565.52,0.00038635,120]
[424331242,1780768357000,-500.0,0.00038635,120]
[424331244,1780768357000,-565.52,0.00038635,120]
[424331259,1780768357000,-552.88333078,0.00038635,120]
[424331245,1780768357000,-500.0,0.00038635,120]
[424331255,1780768357000,-500.0,0.00038635,120]
[424331263,1780768357000,-500.0,0.00038635,120]
[424331262,1780768357000,-500.0,0.00038635,120]
[424331266,1780768357000,-500.0,0.00038635,120]
[424331265,1780768357000,-500.0,0.00038635,120]
[424331261,1780768357000,-500.0,0.00038635,120]
[424331248,1780768357000,-500.0,0.00038635,120]
[424331249,1780768357000,-500.0,0.00038635,120]
[424331250,1780768357000,-500.0,0.00038635,120]
[424331251,1780768357000,-565.52,0.00038635,120]
[424331247,1780768357000,-565.52,0.00038635,120]
[424331264,1780768357000,-500.0,0.00038635,120]
[424331333,1780768358000,-769.73,0.00038635,120]
[424331338,1780768358000,-769.73,0.00038635,120]
[424331336,1780768358000,-500.0,0.00038635,120]
[424331339,1780768358000,-674.67,0.00038635,120]
[424331335,1780768358000,-623.25,0.00038635,120]
[424331332,1780768358000,-583.29,0.00038635,120]
[424331331,1780768358000,-500.0,0.00038635,120]
[424331343,1780768358000,-500.0,0.00038635,120]
[424331342,1780768358000,-769.73,0.00038635,120]
[424331340,1780768358000,-500.0,0.00038635,120]
[424331341,1780768358000,-583.29,0.00038635,120]
[424331337,1780768358000,-583.29,0.00038635,120]
[424331334,1780768358000,-674.67,0.00038635,120]
[424331360,1780768358000,-674.67,0.00038635,120]
[424331346,1780768358000,-500.0,0.00038635,120]
[424331350,1780768358000,-769.73,0.00038635,120]
[424331356,1780768358000,-500.0,0.00038635,120]
[424331353,1780768358000,-623.25,0.00038635,120]
[424331349,1780768358000,-623.25,0.00038635,120]
[424331347,1780768358000,-674.67,0.00038635,120]
[424331351,1780768358000,-674.67,0.00038635,120]
[424331352,1780768358000,-500.0,0.00038635,120]
[424331348,1780768358000,-500.0,0.00038635,120]